bitfinex-derivatives/quotes_ETHF0:USTF0_20250427
["timestamp","ask_amount","ask_price","bid_price","bid_amount"]
[1745717482151,1.09549,1824.9,1824.8,13.69281196]
[1745717482455,1.09549,1824.9,1824.8,10.76333196]
[1745717482660,1.09549,1824.9,1824.8,9.02151196]
[1745717483459,1.09549,1824.9,1824.0,43.94158393]
[1745717483460,3.2078,1824.1,1821.6,0.36069321]
[1745717483662,11.98502059,1824.9,1821.6,3.21e-06]
[1745717483663,1.09741,1821.7,1821.6,3.21e-06]
[1745717483957,4.30521,1821.7,1821.6,3.21e-06]
[1745717484256,3.2078,1821.7,1820.6,3.3236]
[1745717484452,3.2078,1821.0,1820.6,3.3236]
[1745717484653,3.2078,1821.0,1820.9,10.9478]
[1745717484961,3.2078,1821.4,1820.9,36.0527]
[1745717485152,3.2078,1821.2,1820.4,5.676]
[1745717485354,3.2078,1821.2,1820.6,3.2078]
[1745717485547,3.2078,1821.1,1820.2,3.2078]
[1745717485746,3.2078,1820.7,1820.2,3.2078]
[1745717485950,5.676,1821.4,1820.4,21.8971]
[1745717485951,4.3058,1820.8,1820.4,21.8971]
[1745717486156,3.2078,1820.8,1820.6,21.8971]
[1745717486356,3.2286,1821.0,1820.7,10.9478]
[1745717486652,3.2078,1821.0,1820.8,10.9478]
[1745717486896,4.30567,1821.0,1820.6,25.3176]
[1745717487051,3.2078,1820.7,1820.2,3.2078]
[1745717487251,3.2078,1819.8,1818.6,26.15506]
[1745717487555,4.30702,1818.7,1818.6,21.43537439]
[1745717487753,3.2078,1818.7,1818.6,10.46197246]
[1745717487959,3.2078,1818.7,1818.6,6.89955]
[1745717488156,3.2078,1818.5,1816.9,3.2078]
[1745717488357,3.2078,1818.5,1816.7,6.97832833]
[1745717488358,4.30771,1817.6,1817.0,1.223]
[1745717488555,3.2078,1817.4,1817.0,1.223]
[1745717488857,3.2078,1817.2,1817.1,1.223]
[1745717489352,3.2078,1817.2,1815.7,3.2078]
[1745717489555,3.2078,1817.2,1815.5,3.5883612]
[1745717489556,3.2078,1816.4,1816.1,60.36068321]
[1745717489759,3.2078,1816.8,1816.6,17.49925393]
[1745717489957,3.2078,1816.8,1816.3,3.2078]
[1745717490146,61.502,1817.7,1816.1,60.36068321]
[1745717490147,3.2078,1817.0,1816.7,17.49925393]
[1745717490353,3.2078,1816.8,1816.3,17.49925393]
[1745717490649,3.2078,1817.0,1816.8,17.49925393]
[1745717490849,61.502,1817.7,1816.9,3.2078]
[1745717490850,3.2078,1817.4,1816.9,3.2078]
[1745717491049,3.2078,1817.6,1817.3,17.49925393]
[1745717491249,3.2078,1817.6,1817.0,3.2078]
[1745717491250,3.2078,1818.0,1817.5,20.70705393]
[1745717491447,0.0072,1818.4,1817.7,3.2078]
[1745717491651,3.2078,1818.4,1818.3,17.49925393]
[1745717491853,3.215,1819.0,1818.4,17.49925393]
[1745717492053,3.215,1819.0,1818.5,3.2078]
[1745717492258,7.772,1819.1,1818.6,13.06002666]
[1745717492562,3.2078,1818.7,1817.2,10.9848]
[1745717492759,3.215,1819.0,1818.5,3.2078]
[1745717493063,3.2078,1819.5,1819.2,11.96080666]
[1745717493359,3.2078,1819.5,1819.2,45.9074566]
[1745717493556,3.2078,1819.5,1818.9,3.1681]
[1745717493757,0.01650155,1819.2,1818.3,3.2078]
[1745717493963,3.2078,1818.9,1818.3,45.9074566]
[1745717494159,3.2078,1818.9,1818.5,3.2078]
[1745717494462,3.2078,1819.7,1818.8,3.2078]
[1745717494654,3.2078,1819.7,1818.6,3.1305]
[1745717494655,0.0072,1819.9,1819.3,3.2078]
[1745717494853,8.03,1820.0,1819.6,3.2078]
[1745717495056,3.2078,1820.1,1819.7,3.2078]
[1745717495353,9.12813,1820.5,1819.6,1.09864]
[1745717495354,8.03,1820.5,1819.9,4.30626]
[1745717495562,0.0072,1821.2,1820.3,3.2078]
[1745717495859,3.2078,1821.1,1820.6,3.2078]
[1745717496158,8.03,1821.3,1820.7,6.3383]
[1745717496366,3.2078,1821.6,1820.7,2.13244217]
[1745717496668,3.2078,1821.0,1820.7,42.68315505]
[1745717496852,3.2078,1821.4,1820.7,42.68315505]
[1745717497053,0.9911,1821.6,1820.7,42.68315505]
[1745717497054,3.2078,1821.3,1820.7,42.68315505]
[1745717497263,3.2078,1821.1,1820.7,42.68315505]
[1745717497561,3.2078,1821.9,1820.7,45.89095505]
[1745717497752,5.2962,1821.9,1821.1,1.09774]
[1745717498051,4.1989,1821.9,1820.7,45.89095505]
[1745717498252,5.29622,1821.9,1821.1,1.09772]
[1745717498458,1.09751,1821.6,1820.9,1.09789]
[1745717498658,3.2078,1821.5,1820.8,3.2078]
[1745717498861,3.2078,1821.2,1820.8,45.89095505]
[1745717499054,3.2078,1821.2,1820.8,46.98887505]
[1745717499258,3.2078,1821.7,1820.8,50.89095505]
[1745717499458,3.2078,1821.7,1820.8,45.89095505]
[1745717499707,1.09753,1821.5,1820.9,3.3763]
[1745717499853,1.0975,1821.6,1820.9,4.47416]
[1745717500054,3.2078,1821.5,1820.9,46.05945505]
[1745717500363,3.2078,1821.2,1820.5,3.2078]
[1745717500561,1.09794,1820.9,1820.5,6.4352]
[1745717500769,4.30566,1821.0,1820.5,49.11835505]
[1745717500970,3.2078,1821.0,1820.5,49.11835505]
[1745717501265,3.2078,1821.7,1820.9,3.2078]
[1745717501563,3.2078,1821.7,1821.0,3.2274]
[1745717501564,1.09762,1821.4,1821.0,3.2274]
[1745717501767,1.09765,1821.3,1821.0,3.2274]
[1745717502060,1.09749,1821.6,1821.0,26.00227731]
[1745717502266,3.2078,1821.7,1821.2,3.2078]
[1745717502468,1.09749,1821.6,1821.2,28.11227731]
[1745717502660,3.2078,1821.7,1821.2,24.90447731]
[1745717502895,1.09763,1821.4,1821.2,24.90447731]
[1745717503054,1.09765,1821.3,1821.2,24.90447731]
[1745717503255,1.09765,1821.3,1820.8,4.30572]
[1745717503455,3.2078,1821.4,1821.0,1.09782]
[1745717503659,1.09773,1821.2,1820.8,28.11227731]
[1745717504061,1.09768,1821.3,1820.8,29.21021731]
[1745717504272,3.2078,1821.0,1820.5,3.2078]
[1745717504659,3.2078,1821.0,1820.5,28.11227731]
[1745717504961,1.09775,1821.2,1820.7,1.09797]
[1745717505154,3.2078,1821.3,1821.0,1.09781]
[1745717505353,1.09751,1821.6,1820.9,3.2078]
[1745717505558,3.2078,1821.7,1821.1,1.09775]
[1745717505865,1.09777,1821.1,1821.0,3.4234]
[1745717506169,1.09798,1820.8,1820.5,3.2078]
[1745717506364,3.2078,1821.0,1820.5,28.11227731]
[1745717506661,1.09794,1820.9,1820.6,3.2672]
[1745717506864,8.032,1821.2,1820.6,3.2672]
[1745717507059,1.09798,1820.8,1820.6,28.17167731]
[1745717507259,1.0979,1820.9,1820.7,3.2672]
[1745717507456,1.09785,1821.0,1820.7,3.2672]
[1745717507660,1.09785,1821.0,1820.7,28.17167731]
[1745717507856,3.2078,1821.2,1820.8,3.2078]
[1745717508063,3.2078,1821.8,1821.0,3.2078]
[1745717508370,1.09737,1821.8,1821.6,3.2078]
[1745717508663,1.09737,1821.8,1821.7,3.2672]
[1745717508864,11.2752,1822.2,1821.4,8.16478912]
[1745717509286,1.09753,1821.5,1821.4,8.16478912]
[1745717509464,1.09753,1821.5,1821.4,3.2078]
[1745717510069,1.0975,1821.6,1821.4,8.16478912]
[1745717510367,1.09753,1821.5,1821.4,3.2078]
[1745717510559,2.74197,1822.8,1821.4,13.16478912]
[1745717510758,2.74197,1822.8,1822.0,3.2078]
[1745717510759,2.74218,1822.6,1822.0,3.2078]
[1745717511057,2.74203,1822.7,1822.0,3.2078]
[1745717511260,1.09711,1822.2,1822.0,8.16478912]
[1745717511463,2.74248,1822.4,1822.0,3.2078]
[1745717511662,1.09717,1822.1,1822.0,3.2078]
[1745717511859,1.09717,1822.1,1822.0,8.16478912]
[1745717512161,1.09717,1822.1,1821.5,6.6775]
[1745717512162,1.09735,1821.8,1821.7,3.2078]
[1745717512360,1.09741,1821.7,1821.6,3.3489]
[1745717512556,1.09741,1821.7,1821.6,8.30588912]
[1745717512770,3.2078,1822.2,1821.6,11.51368912]
[1745717512959,1.09731,1821.9,1821.6,12.61115912]
[1745717513163,1.09735,1821.8,1821.7,3.3489]
[1745717513363,3.2078,1822.7,1821.7,6.5567]
[1745717513569,3.2078,1822.7,1822.3,3.2078]
[1745717514072,3.2078,1822.7,1822.4,3.3489]
[1745717514073,1.09693,1822.5,1822.4,3.3489]
[1745717514463,1.09717,1822.1,1822.0,3.2078]
[1745717514667,1.09717,1822.1,1821.8,3.2078]
[1745717514861,1.09715,1822.2,1821.8,3.2078]
[1745717515067,2.74248,1822.4,1821.8,3.2078]
[1745717515269,1.09722,1822.1,1821.8,3.2078]
[1745717515672,1.09708,1822.3,1822.0,3.2078]
[1745717515869,1.09699,1822.4,1822.1,1.09715]
[1745717516069,1.09706,1822.3,1821.5,9.9165481]
[1745717516268,1.09706,1822.3,1822.0,1.09721]
[1745717516571,1.09737,1821.8,1821.6,3.2078]
[1745717516767,3.2078,1822.3,1821.6,3.2078]
[1745717517066,3.2078,1822.1,1821.6,3.2078]
[1745717517273,1.09731,1821.9,1821.6,4.30525]
[1745717517463,3.2078,1822.1,1821.6,3.2078]
[1745717517663,2.74368,1821.6,1820.8,3.2078]
[1745717517869,3.2078,1820.9,1820.4,6.5288]
[1745717518065,3.2078,1820.8,1820.4,6.5288]
[1745717518263,1.09804,1820.7,1820.4,7.62699]
[1745717518472,3.2763,1821.2,1820.6,1.09804]
[1745717518672,1.09783,1821.1,1820.7,1.09798]
[1745717518869,1.09791,1820.9,1820.6,1.09805]
[1745717519067,1.09787,1821.0,1820.7,1.09801]
[1745717519273,1.0978,1821.1,1820.8,1.09795]
[1745717519467,3.2078,1821.3,1820.8,3.2078]
[1745717519774,1.09777,1821.1,1820.8,4.30571]
[1745717519972,3.2078,1821.3,1820.8,3.2078]
[1745717520172,3.2078,1821.3,1821.1,1.09777]
[1745717520478,3.2078,1821.3,1820.4,9.7366]
[1745717520667,1.0981,1820.6,1820.4,9.7366]
[1745717520867,3.2078,1820.8,1819.8,3.2078]
[1745717521070,1.09816,1820.5,1820.4,3.2217]
[1745717521574,1.09853,1819.9,1819.6,8.03]
[1745717521769,1.09856,1819.8,1819.7,3.2217]
[1745717521971,3.2078,1819.8,1819.4,3.2078]
[1745717522167,4.30638,1819.8,1819.5,3.2217]
[1745717522366,1.09868,1819.6,1819.5,3.2217]
[1745717522570,1.09868,1819.6,1818.6,0.41646659]
[1745717522571,3.2078,1819.6,1818.8,3.2078]
[1745717522764,3.2078,1819.2,1818.4,3.2078]
[1745717522970,3.2078,1818.9,1818.2,3.2078]
[1745717523168,3.2078,1818.7,1818.0,3.1041]
[1745717523373,3.2078,1818.7,1818.2,3.2078]
[1745717523568,3.2078,1818.7,1818.0,3.1041]
[1745717523776,3.2078,1818.6,1818.1,3.2078]
[1745717523974,1.09949,1818.3,1818.2,3.2217]
[1745717524275,3.2078,1818.3,1817.2,11.0978]
[1745717524577,3.2078,1817.3,1816.9,3.2078]
[1745717524769,1.10022,1817.1,1816.6,3.2081]
[1745717524971,7.56076,1817.7,1817.0,3.2078]
[1745717525169,3.2078,1817.7,1817.2,3.2078]
[1745717525464,3.2078,1818.2,1817.3,3.3682]
[1745717525867,3.2531,1818.1,1817.3,3.3682]
[1745717526063,3.2078,1818.2,1817.5,1.09991]
[1745717526279,3.2531,1818.4,1817.4,3.2078]
[1745717526473,3.2078,1818.6,1817.8,3.2078]
[1745717526678,3.2078,1818.6,1818.1,4.30736]
[1745717526979,3.2078,1818.6,1818.2,3.3682]
[1745717527167,1.09969,1818.0,1817.2,3.2078]
[1745717527374,3.2078,1818.1,1817.2,3.3248]
[1745717527571,3.1982,1818.2,1817.2,3.3248]
[1745717527769,3.2078,1818.1,1817.2,4.42489]
[1745717527970,3.2078,1818.1,1817.2,3.3248]
[1745717528269,3.2078,1818.1,1817.6,3.2078]
[1745717528465,3.2078,1818.4,1817.7,3.3248]
[1745717528666,3.2078,1818.7,1818.2,3.2078]
[1745717528969,3.2078,1819.3,1818.4,3.2078]
[1745717529174,1.74054714,1818.4,1818.3,3.3248]
[1745717529519,8.90822766,1818.8,1818.3,3.3248]
[1745717529520,3.74502766,1818.8,1818.3,6.5326]
[1745717529673,24.94522039,1819.4,1818.8,2.74791]
[1745717529863,24.94522039,1819.4,1818.9,3.3248]
[1745717530470,24.94522039,1819.4,1819.3,1.09886]
[1745717530670,23.75523039,1819.4,1819.3,1.09886]
[1745717530971,23.75523039,1819.4,1819.3,9.39956]
[1745717531270,23.75523039,1819.4,1819.3,3.3007]
[1745717532477,3.2078,1819.5,1818.9,1.09909]
[1745717532772,3.2078,1819.5,1818.9,3.3007]
[1745717532970,3.2078,1819.7,1818.9,6.5085]
[1745717533271,3.2078,1819.7,1819.4,1.09875]
[1745717533475,3.2078,1819.7,1818.9,3.3007]
[1745717533676,3.2078,1819.5,1818.9,3.3007]
[1745717533978,4.30686,1819.0,1818.4,6.4137]
[1745717534280,3.2078,1818.8,1818.7,1.09922]
[1745717534470,3.2078,1818.8,1818.5,3.4371]
[1745717534471,3.2078,1819.2,1818.5,3.4371]
[1745717534673,3.2078,1819.2,1818.9,1.09907]
[1745717534920,3.2078,1819.2,1818.9,1.09909]
[1745717535174,4.30677,1819.2,1818.7,1.09918]
[1745717535379,4.30699,1818.8,1818.4,4.3072]
[1745717535672,3.1227,1819.6,1818.0,1.09961]
[1745717535673,1.09946,1818.4,1818.0,1.09961]
[1745717535871,3.2078,1818.4,1817.8,7.897]
[1745717536175,3.2078,1818.2,1817.3,7.897]
[1745717536369,3.2078,1817.7,1816.8,7.897]
[1745717536570,6.31,1817.6,1817.0,3.3001]
[1745717536776,4.30779,1817.5,1817.0,4.4003]
[1745717537073,3.1022,1817.6,1817.5,1.09995]
[1745717537382,3.1022,1817.6,1817.0,3.3001]
[1745717537582,3.2078,1818.1,1817.3,3.2078]
[1745717537776,3.2078,1818.1,1817.4,3.3001]
[1745717537973,3.2078,1818.1,1817.8,1.09973]
[1745717538278,3.2078,1818.4,1817.7,3.2078]
[1745717538477,3.2078,1818.6,1818.5,1.09931]
[1745717538672,3.2078,1819.0,1818.7,1.09919]
[1745717538980,3.2078,1819.0,1818.3,3.3001]
[1745717539180,3.2078,1819.0,1818.8,1.09913]
[1745717539380,3.2078,1819.0,1818.5,3.2078]
[1745717539571,3.2078,1819.2,1818.6,3.3424]
[1745717539879,3.2078,1818.8,1818.0,3.2078]
[1745717540178,3.2078,1819.0,1818.7,1.09917]
[1745717540372,3.2078,1819.0,1818.8,1.09913]
[1745717540575,3.2078,1819.0,1818.7,1.09922]
[1745717540776,3.2078,1819.0,1818.9,1.0991]
[1745717540979,64.45123,1820.0,1819.6,1.09866]
[1745717540980,3.2078,1819.8,1819.6,1.09866]
[1745717541177,23.33809541,1820.9,1819.7,0.1]
[1745717541375,3.2078,1820.7,1820.3,1.09821]
[1745717541575,1.09807,1820.6,1819.8,3.3424]
[1745717541776,3.2335,1820.8,1819.8,3.3424]
[1745717541777,3.2335,1820.5,1819.8,3.3424]
[1745717541972,12.80909327,1820.2,1820.1,1.09837]
[1745717542274,12.80909327,1820.2,1820.1,1.80360154]
[1745717542473,12.80909327,1820.2,1820.1,2.90197154]
[1745717542675,12.80909327,1820.2,1820.1,11.10977154]
[1745717542985,12.80909327,1820.2,1820.1,7.90197154]
[1745717543784,12.80909327,1820.2,1820.1,2.90197154]
[1745717543984,12.80909327,1820.2,1820.1,7.90197154]
[1745717544185,3.2457,1820.8,1820.1,1.09834]
[1745717544527,4.30592,1820.6,1820.1,1.09833]
[1745717544781,3.2078,1820.2,1819.7,3.2078]
[1745717545180,3.2078,1820.2,1819.5,7.897]
[1745717545381,3.2457,1820.1,1819.5,1.0987]
[1745717545615,3.2457,1820.1,1819.3,4.30663]
[1745717545616,1.09859,1819.8,1819.3,4.30663]
[1745717545779,6.4235,1819.7,1819.3,4.30663]
[1745717545978,6.4235,1819.7,1819.3,3.2078]
[1745717546179,6.18765,1820.5,1819.7,1.09857]
[1745717546180,3.2078,1819.9,1819.7,1.09857]
[1745717546493,3.2078,1820.2,1820.0,1.09841]
[1745717546782,1.09854,1819.9,1819.3,3.2078]
[1745717547081,3.2078,1820.2,1819.3,3.2078]
[1745717547082,3.2078,1819.7,1819.3,3.2078]
[1745717547282,3.2078,1819.7,1819.4,1.09879]
[1745717547585,3.2078,1819.7,1819.3,3.2078]
[1745717547781,4.31443,1819.6,1819.3,3.2078]
[1745717548085,3.2157,1819.6,1819.3,3.2078]
[1745717548282,3.2157,1819.6,1818.9,7.896]
[1745717548477,3.2078,1819.3,1818.8,1.09915]
[1745717548671,3.2339,1819.2,1818.7,3.3931]
[1745717549078,4.31353327,1819.2,1818.8,1.09913]
[1745717549274,3.2078,1819.1,1818.8,1.09913]
[1745717549474,3.2078,1819.1,1818.6,3.2078]
[1745717549683,3.2078,1819.1,1818.8,1.09916]
[1745717549902,4.30678,1819.1,1818.7,1.09918]
[1745717550081,3.2078,1819.3,1818.8,1.0]
[1745717550284,3.2078,1820.2,1819.2,5.95498]
[1745717550480,3.2078,1820.8,1820.0,3.2078]
[1745717550680,3.2078,1820.7,1819.6,7.896]
[1745717550886,5.9532,1820.5,1819.7,1.0986]
[1745717551091,3.2078,1820.3,1819.4,3.2078]
[1745717551279,1.0985,1819.9,1819.5,1.0987]
[1745717551679,3.2078,1820.3,1819.4,3.2078]
[1745717551680,4.30641,1819.8,1819.4,1.09876]
[1745717551879,3.2078,1819.8,1819.3,3.2078]
[1745717552091,1.09865,1819.7,1819.3,3.2078]
[1745717552298,3.3978,1819.7,1819.3,3.2078]
[1745717552705,3.2078,1820.1,1819.8,1.09852]
[1745717552905,3.2078,1820.1,1819.6,1.09865]
[1745717553203,3.2078,1819.9,1819.3,3.2078]
[1745717553399,1.09879,1819.5,1819.3,3.2078]
[1745717553700,3.3978,1819.8,1818.9,3.2078]
[1745717553701,3.2078,1819.7,1818.9,3.2078]
[1745717553898,4.49648,1819.6,1818.9,3.2078]
[1745717554104,3.3978,1819.6,1818.9,3.2078]
[1745717554597,3.2078,1819.7,1818.9,3.2078]
[1745717554804,3.2078,1819.7,1819.6,1.09868]
[1745717555002,3.1292,1820.0,1819.3,3.2078]
[1745717555306,3.2078,1820.1,1819.9,1.09846]
[1745717555806,6.337,1820.1,1820.0,1.09843]
[1745717556329,6.337,1820.1,1819.5,3.2078]
[1745717556491,1.09846,1820.0,1819.7,1.09856]
[1745717556696,4.22768,1820.0,1819.7,1.09858]
[1745717556897,3.1292,1820.0,1819.3,7.938]
[1745717557097,3.2078,1819.9,1819.3,7.938]
[1745717557303,1.0987,1819.6,1819.1,3.2078]
[1745717557504,3.1292,1819.8,1819.1,3.2078]
[1745717557505,4.22779,1819.8,1819.1,3.2078]
[1745717557705,3.2078,1819.7,1819.1,3.2078]
[1745717557903,6.416,1819.7,1819.1,3.2078]
[1745717558200,6.416,1819.7,1819.5,1.09871]
[1745717558605,6.416,1819.7,1819.1,3.2078]
[1745717558802,6.416,1819.7,1819.5,1.0987]
[1745717559008,7.51462,1819.7,1819.1,3.2078]
[1745717559203,3.2078,1819.5,1818.9,1.09907]
[1745717559411,4.30678,1819.1,1818.8,1.09912]
[1745717559906,3.2078,1819.1,1818.9,1.09907]
[1745717560102,4.30678,1819.1,1818.9,1.09907]
[1745717560304,3.2078,1819.1,1818.6,11.1458]
[1745717560509,1.09906,1819.0,1818.8,1.09914]
[1745717560804,4.3068,1819.1,1818.6,11.1458]
[1745717561000,3.2078,1819.1,1818.8,1.09911]
[1745717561203,1.09871,1819.6,1818.9,3.2078]
[1745717561405,3.2078,1819.4,1819.1,3.2078]
[1745717561605,3.2078,1819.7,1819.5,1.0987]
[1745717562108,3.2078,1819.7,1819.6,1.09868]
[1745717562297,3.2078,1819.7,1819.2,2.7473]
[1745717562502,3.2078,1819.7,1819.6,1.09868]
[1745717562701,3.1418,1819.8,1819.7,1.09862]
[1745717563005,3.2078,1819.9,1819.8,1.09856]
[1745717563918,8.2078,1819.9,1819.2,3.2078]
[1745717564107,4.30645,1819.7,1819.0,2.7476]
[1745717564406,4.30645,1819.7,1819.4,1.09878]
[1745717564407,3.2078,1819.7,1819.4,1.09878]
[1745717564708,3.2933,1819.8,1819.6,1.09864]
[1745717564906,3.2078,1819.7,1819.3,3.2078]
[1745717565209,3.2078,1819.7,1819.6,1.09862]
[1745717565410,3.2933,1819.8,1819.7,1.09862]
[1745717565604,3.2078,1819.9,1819.7,1.09858]
[1745717565810,4.30633,1819.9,1819.7,1.09858]
[1745717566107,1.09871,1819.6,1818.9,13.63641]
[1745717566308,1.0988,1819.4,1819.2,1.09888]
[1745717566607,3.2078,1819.3,1818.6,3.2078]
[1745717566807,2.74791,1818.8,1818.0,3.2078]
[1745717567009,1.09948,1818.3,1818.0,1.09962]
[1745717567310,3.2078,1818.4,1817.5,2.74976]
[1745717567311,3.2078,1818.6,1818.1,3.3988]
[1745717567614,1.09994,1817.6,1817.4,10.76927863]
[1745717567805,4.30775,1817.5,1817.4,10.76927863]
[1745717568000,3.2078,1817.5,1817.4,10.76927863]
[1745717568205,4.30775,1817.5,1817.4,10.76927863]
[1745717568406,8.2078,1817.5,1817.2,15.97771634]
[1745717568607,3.2078,1817.3,1817.2,15.97771634]
[1745717568813,4.30787,1817.3,1817.2,15.97771634]
[1745717569511,5.85854,1818.2,1817.2,15.97771634]
[1745717569512,3.2078,1817.5,1817.2,15.97771634]
[1745717569704,3.2078,1817.6,1817.2,15.97771634]
[1745717569903,3.2078,1817.6,1817.0,3.3363]
[1745717570104,4.3077,1817.6,1817.1,1.10014]
[1745717570304,1.10033,1816.9,1816.4,3.2078]
[1745717570610,3.2078,1817.0,1816.4,3.2078]
[1745717570810,3.2078,1817.0,1816.5,3.3363]
[1745717571007,3.2078,1816.8,1816.5,3.3363]
[1745717571208,3.2078,1816.6,1815.8,3.2078]
[1745717571410,1.10073,1816.2,1815.7,3.3363]
[1745717571603,1.10073,1816.2,1815.4,21.49113506]
[1745717571604,1.10073,1816.2,1816.1,3.21e-06]
[1745717571810,9.31583,1816.2,1816.1,3.21e-06]
[1745717572013,9.80835561,1816.2,1816.1,3.21e-06]
[1745717572517,1.10116,1815.5,1815.4,21.49113506]
[1745717572718,4.30896,1815.5,1815.4,15.01821506]
[1745717572913,3.2078,1815.5,1815.4,15.01821506]
[1745717573105,3.2078,1816.3,1815.7,1.101]
[1745717573307,3.2078,1816.3,1815.4,18.22601506]
[1745717573518,7.685,1816.7,1815.4,15.01821506]
[1745717573519,3.2078,1815.9,1815.4,15.01821506]
[1745717573712,6.08647,1816.2,1815.4,15.01821506]
[1745717573713,3.3346,1816.2,1815.4,15.01821506]
[1745717574104,3.2078,1815.9,1815.4,15.01821506]
[1745717574308,1.10084,1816.1,1815.5,1.10112]
[1745717574584,3.3346,1816.2,1815.5,3.1827]
[1745717574712,1.10095,1815.9,1815.5,3.1827]
[1745717574912,3.3346,1815.8,1815.5,3.1827]
[1745717575108,3.2078,1816.1,1815.7,3.2078]
[1745717575308,1.10079,1816.1,1815.5,4.28385]
[1745717575513,3.3346,1816.0,1815.5,4.28384]
[1745717575720,3.3346,1816.0,1815.6,1.10106]
[1745717575912,3.3346,1816.0,1815.7,3.2078]
[1745717576415,10.98943846,1815.9,1814.7,3.2078]
[1745717576610,3.2078,1815.1,1814.5,3.2078]
[1745717576811,3.2078,1815.2,1814.5,3.2078]
[1745717577013,3.2078,1815.3,1814.5,3.2078]
[1745717577513,3.2078,1814.8,1814.1,6.4302]
[1745717577823,3.2078,1814.8,1814.5,1.10174]
[1745717578018,3.2078,1814.8,1814.4,3.2078]
[1745717578322,3.2078,1815.4,1814.7,3.2078]
[1745717578517,3.2078,1815.2,1814.9,3.2078]
[1745717578714,1.10146,1815.0,1814.9,3.2078]
[1745717578919,3.2078,1815.2,1814.5,3.2224]
[1745717578920,3.4224,1815.1,1814.6,1.1017]
[1745717579117,3.2078,1815.4,1814.8,3.2078]
[1745717579426,3.2078,1816.0,1815.2,3.2078]
[1745717579620,1.10112,1815.6,1815.2,3.2078]
[1745717579920,3.2078,1815.7,1814.9,3.4178]
[1745717580118,7.00195992,1816.2,1815.2,3.2078]
[1745717580317,1.10092,1815.9,1815.4,1.10119]
[1745717580518,6.6302,1816.1,1815.9,1.10088]
[1745717580711,7.00195992,1816.2,1816.1,1.10079]
[1745717580913,8.71260027,1816.4,1816.3,1.10067]
[1745717581124,7.4167802,1816.4,1816.3,4.30847]
[1745717581316,6.2034102,1816.4,1816.3,9.30847]
[1745717581516,3.6178002,1816.4,1816.3,9.30847]
[1745717581712,3.6178002,1816.4,1816.3,8.2078]
[1745717581920,3.6178002,1816.4,1815.8,3.2078]
[1745717581921,11.8256002,1816.4,1815.8,3.2078]
[1745717582220,1.10106,1815.7,1815.3,3.2078]
[1745717582419,3.2078,1816.2,1815.3,3.2078]
[1745717582628,3.2078,1816.5,1816.0,3.2078]
[1745717583117,3.2078,1817.0,1816.1,3.3265]
[1745717583322,3.2078,1817.0,1816.1,6.5343]
[1745717583518,3.2542,1816.9,1816.1,6.5343]
[1745717583711,3.2542,1816.9,1816.3,1.10065]
[1745717583712,1.10039,1816.8,1816.3,1.10065]
[1745717584026,3.2078,1816.6,1816.2,1.10071]
[1745717584219,3.2542,1816.7,1816.4,1.10057]
[1745717584424,3.2078,1817.0,1816.2,3.3265]
[1745717584625,3.2542,1816.9,1816.2,3.3265]
[1745717584825,4.35455,1816.9,1816.2,3.3265]
[1745717585022,3.2078,1817.0,1816.2,3.3265]
[1745717585229,3.2078,1817.7,1817.0,1.10022]
[1745717585428,3.4226,1817.6,1817.1,3.1374]
[1745717585624,64.53815,1818.0,1817.1,3.1374]
[1745717585625,61.789,1818.0,1817.1,3.1374]
[1745717585925,3.2078,1818.3,1817.3,5.95797]
[1745717586129,6.6304,1818.3,1817.8,4.30754]
[1745717586368,6.6304,1818.3,1817.8,3.2078]
[1745717586369,3.2078,1818.3,1817.8,3.2078]
[1745717586829,10.59455638,1818.0,1817.4,1.99170878]
[1745717587027,1.10031,1816.9,1816.8,3.2078]
[1745717587230,1.10031,1816.9,1815.6,3.2078]
[1745717587231,3.2078,1816.9,1815.6,3.2078]
[1745717587428,3.2078,1816.1,1815.5,1.10112]
[1745717587820,3.3932,1816.5,1815.6,1.10109]
[1745717588126,3.2078,1816.4,1816.1,1.10076]
[1745717588330,3.2078,1816.4,1816.0,1.10081]
[1745717588530,1.10076,1816.2,1815.7,1.10101]
[1745717588726,3.3932,1816.3,1816.1,1.10074]
[1745717588931,3.2078,1816.7,1816.4,1.1006]
[1745717589228,3.2078,1816.7,1815.6,5.96055]
[1745717589423,3.2078,1816.7,1815.8,2.75245]
[1745717589731,1.1001,1817.3,1816.8,1.10033]
[1745717589944,3.2078,1817.6,1816.5,11.11125]
[1745717590121,3.2078,1818.1,1816.9,2.75073]
[1745717590321,6.601,1818.3,1817.3,2.75016]
[1745717590635,6.601,1818.3,1817.5,2.74987]
[1745717590636,3.2078,1818.3,1817.5,2.74987]
[1745717590930,3.2078,1818.3,1818.1,1.09955]
[1745717591129,3.2078,1818.3,1818.2,1.09952]
[1745717591325,3.2078,1819.0,1817.8,11.5678]
[1745717591524,1.09919,1818.8,1818.4,1.09938]
[1745717591828,1.09929,1818.6,1818.2,1.0995]
[1745717592023,6.4031,1818.9,1817.8,8.36]
[1745717592024,3.1953,1818.9,1817.8,8.36]
[1745717592222,3.2078,1818.8,1817.9,3.2223]
[1745717592530,3.2078,1818.6,1817.5,61.786]
[1745717592760,3.2078,1817.9,1817.7,3.2223]
[1745717592924,3.2078,1818.4,1817.7,3.2223]
[1745717593119,1.09958,1818.1,1817.7,4.3221]
[1745717593330,3.1953,1818.3,1817.7,4.3221]
[1745717593331,1.09974,1817.9,1817.7,3.2223]
[1745717593629,1.09987,1817.7,1817.4,6.4341]
[1745717593930,5.94409,1818.3,1817.7,1.09978]